[Event "Svetozar Gligoric Masters 2022"]
[Site "Belgrade"]
[Date "2022.07.19"]
[Round "4.7"]
[White "Sedlak, Nikola"]
[Black "Erdogmus, Yagiz Kaan"]
[Result "1/2-1/2"]
[ECO "A04"]
[WhiteElo "2480"]
[BlackElo "2373"]
[Annotator "TA"]
[PlyCount "122"]
[EventDate "2022.07.18"]
[EventCountry "SRB"]
[SourceTitle "playchess.com"]
[Source "ChessBase"]
[SourceQuality "1"]
[TimeControl "40/5400+30:900+30"]

{[%evp 17,122,0,6,7,27,31,42,41,37,33,39,36,29,27,111,102,104,103,125,124,185,189,184,203,183,135,203,185,268,267,222,60,61,68,74,57,58,65,57,76,145,142,143,122,158,119,179,180,167,60,201,202,212,160,155,147,147,146,138,137,143,136,218,214,193,40,45,31,30,20,27,20,22,16,20,8,8,8,8,8,8,8,8,8,14,8,8,8,10,10,17,8,10,8,8,8,8,0,0,0,0,0,0,0,0,0,0]} 1. e4 c5 2. Nf3 e6 3. d3 Nc6 4. g3 g6 5. Bg2 Bg7 6. O-O Nge7 7. Re1 O-O 8. c3 {8.Nbd2 is more fashionable.} e5 9. a3 {[%cal Ba2a3,Ba3b4,Bb4b5][%mdl 32]} d5 10. b4 {A04: Unusual lines after 1 Nf3 and King's Indian Attack.} dxe4 11. dxe4 {[#]} Be6 $146 ({Predecessor:} 11... b6 12. Be3 Qc7 13. Nbd2 Ba6 14. Qa4 Bd3 15. bxc5 Na5 16. cxb6 axb6 17. Qb4 Rfb8 {1-0 (41) Lommen,F (2028)-Boschek,H (1948) Bad Homburg 2018}) 12. Be3 {White is slightly better.} b6 13. Nbd2 cxb4 14. axb4 h6 15. Qe2 a5 (15... Rc8 $11 {remains equal.}) 16. b5 $16 Nb8 17. Nc4 $1 Nd7 18. Red1 $36 {[%cal Oc4b6][%mdl 2048] Black must now prevent Nxb6! Keeping Black busy.} Qc7 {[#]} (18... Qc8 $16 {might work better.} 19. Nxb6 Nxb6) 19. Rxd7 $1 $18 {[%mdl 512]} Bxd7 20. Nxb6 (20. Bxb6 Qb8 21. Qe3 (21. Bc5 Bxb5 22. Bxe7 Rc8 $17) 21... Bxb5 $17) 20... Rad8 21. c4 (21. Rxa5 Be6 $11) (21. Nxd7 $18 Qxd7 22. c4 (22. Rxa5 Qd3 $16)) 21... f5 (21... Bg4 $16) 22. Nxd7 ({But not} 22. Rxa5 $6 f4 23. Nxd7 (23. gxf4 exf4 24. Nxd7 Qxa5 $11) 23... Qxa5 24. Nxf8 fxe3 $11) 22... Rxd7 (22... Qxd7 $142 23. c5 Qd3 24. Qxd3 Rxd3) 23. c5 f4 24. c6 $2 (24. Qc4+ $1 $18 Kh7 25. Bd2) 24... fxe3 $14 25. cxd7 {Bh3 is the strong threat.} exf2+ 26. Qxf2 {Hoping for Bh3.} Qxd7 27. Qa2+ Kh7 28. Qxa5 Rb8 (28... Nc8 $142) 29. Bf1 $16 Rf8 30. Ra3 {[%cal Ba1a3,Ba3d3,Bd3d5][%mdl 32]} Qg4 {[%csl LRe4,LRf3]} 31. Bg2 Nc8 (31... Qd7 $16 32. h3 Rc8) 32. Qc7 $18 {And now b6 would win.} Qe6 {Prevents b6.} 33. Qc6 ({White should try} 33. h4 $18) 33... Nd6 {[#]} (33... Qd6 $14 34. Qxd6 Nxd6) 34. Rd3 $1 Rf6 35. h4 Qe7 {[%cal Od6f5]} 36. b6 {aiming for Qc7.} Nb7 37. Qc7 Qc5+ 38. Qxc5 {Active counter play!} Nxc5 39. Rd5 Na4 (39... Nb7 $16 {was worth a try.}) 40. b7 ({Resist} 40. Nxe5 $6 Nxb6 41. Rb5 Re6 $16) 40... Rb6 {[#]} 41. Nxe5 $2 (41. Ra5 $1 $18 {[%cal Ra5a4]} Nb2 42. Ra7 (42. Nxe5 Rxb7 43. Kh2 Rb3 $14)) 41... Rxb7 $14 42. h5 gxh5 43. Nd3 Nc3 $1 44. Rxh5 Rd7 {The position is equal.} 45. Nf4 Re7 {Inhibits e5.} 46. Rh4 Bf6 47. Rg4 Rg7 (47... Nxe4 $2 48. Nd5 Ng5 49. Nxf6+ $18) 48. Rxg7+ Kxg7 $11 {[%mdl 4096] Endgame KBN-KBN} 49. Kf2 Be5 50. Kf3 Nb5 51. Kg4 Nd4 52. Bf1 Bd6 53. Bc4 Be5 54. Nd3 Kf6 55. Nxe5 Kxe5 {KB-KN} 56. Bd3 {Threatens to win with Kh5.} Ne6 57. Kh5 Nc5 {[%csl LRd3,LRe4]} 58. Bc2 Nxe4 59. Bxe4 Kxe4 60. Kxh6 {Intending g4 and mate.} Kf3 61. g4 Kxg4 {Black escapes into a draw.  Weighted Error Value: White=0.17 (very precise) /Black=0.18 (very precise)} 1/2-1/2

[Event "Svetozar Gligoric Masters 2022"]
[Site "Belgrade"]
[Date "2022.07.19"]
[Round "4.9"]
[White "Radovanovic, Nikola"]
[Black "Makaraci, Tunahan"]
[Result "1-0"]
[ECO "B03"]
[WhiteElo "2422"]
[BlackElo "2130"]
[Annotator "TA"]
[PlyCount "142"]
[EventDate "2022.07.18"]
[EventCountry "SRB"]
[SourceTitle "playchess.com"]
[Source "ChessBase"]
[SourceQuality "1"]
[TimeControl "40/5400+30:900+30"]

{[%evp 17,142,-2,3,-3,-15,-10,50,42,77,13,15,-31,39,45,68,68,109,91,141,136,137,143,149,68,96,57,258,261,234,248,255,248,258,147,131,62,58,63,60,52,45,38,60,52,46,50,114,110,116,114,102,106,118,108,106,115,112,113,129,102,107,89,104,0,94,0,89,86,86,55,61,0,85,69,194,159,265,220,292,274,290,276,331,77,77,77,91,25,28,29,29,22,199,150,6033,6033,12847,10548,29957,29959,29960,29962,29964,29965,29965,29966,29966,29967,29967,29968,29968,29969,29970,29971,29973,29971,29971,29972,29973,29971,29971,29972,29977,29978,29980,29981,29986]} 1. e4 {[%cal Be2e4,Be4e5][%mdl 32]} Nf6 2. e5 Nd5 3. c4 Nb6 4. d4 d6 5. f4 dxe5 6. fxe5 Bf5 7. Nc3 e6 8. Be3 Bb4 9. Nf3 c5 10. Qb3 {B03: Alekhine's Defence: Four Pawns Attack.} ({Much worse is} 10. dxc5 Qxd1+ 11. Kxd1 Bxc3 12. bxc3 Na4 $15) 10... cxd4 {...Bxc3+ is the strong threat.} (10... Qe7 {looks sharper.} 11. dxc5 Bxc5 12. Bxc5 Qxc5 13. Qb5+ N8d7) 11. Nxd4 Bxc3+ (11... Qh4+ $11 12. Bf2 Qe4+ 13. Be2 Nc6) 12. Qxc3 $14 {[#] White is slightly better.} O-O $146 ({Predecessor:} 12... Qh4+ 13. g3 Qe4 14. Nxf5 exf5 15. O-O-O Qxh1 16. Qd2 O-O 17. Bg2 Qxh2 18. Bf4 Qh5 19. Bxb7 Nc6 20. Bxa8 Nxa8 21. c5 h6 22. Qd7 Rd8 23. Qxd8+ Nxd8 24. Rxd8+ Kh7 {0-1 (24) Okrugic,T (1886)-Grguric,D (1940) Kastav 2011}) 13. Nxf5 (13. Be2 $16) 13... exf5 $11 14. Bd3 (14. Be2 $11) 14... Nc6 (14... Na4 $15 15. Qc2 Qa5+ 16. Kf2 Na6 17. Bxf5 g6) 15. O-O-O $14 {[%cal Be1c1,Bc1b1,Bb1b2][%mdl 32]} Qe7 16. Bxf5 Nxe5 17. b3 Qa3+ (17... Rfe8 $142) 18. Kb1 $16 Nexc4 {Strongly threatening ...Na4.} 19. Bd4 Qa5 20. Be4 {The board is on fire. This bishop pair is nice.} (20. Qh3 $1 $16 {[%csl Gf5][%cal Rh3h7]} g6 21. Rhf1 (21. bxc4 Qxf5+ 22. Qxf5 gxf5 $14)) 20... Qxc3 $14 21. Bxc3 Na3+ ({Black should play} 21... Ne3 $14) 22. Kb2 $18 Nb5 23. Bb4 ({Weaker is} 23. Bxb7 Rab8 24. Ba6 Nxc3 25. Kxc3 Rfd8 $14) 23... Rfe8 24. Bxb7 Rab8 25. Bf3 (25. Bc6 $1 $18 {[%cal Rc6b5]} Re5 26. Rhe1) 25... Nc7 $16 {[%cal Ob6c4]} 26. Bd6 (26. Ka1 $16) 26... Nc4+ $14 27. Ka1 Nxd6 28. Rxd6 Re7 {Inhibits Rd7.} 29. Rhd1 g6 30. Rd7 Kf8 31. Bc6 $36 {[%mdl 2048] aiming for Rxe7. White fights for an advantage.} Rbe8 (31... Rc8 $1 $14) 32. b4 {White is more active.} Rxd7 33. Rxd7 $16 {[%mdl 4096] Endgame KRB-KRN} Re7 34. Rd8+ Kg7 35. Kb2 Re6 36. Bf3 {Threatens to win with Rd7.} Kf6 37. a4 Ke7 38. Rc8 Kd7 39. Rf8 Ke7 40. Rc8 Kd7 41. Rf8 Ke7 42. Rh8 h5 43. Kc3 Re3+ 44. Kb2 (44. Kc4 $14) 44... Ne8 (44... Re6 $11 {remains equal.}) 45. b5 Re5 (45... Kf6 $14) 46. Kb3 Re1 (46... Kd6 $16) 47. Kb4 Rb1+ {[#]} 48. Ka5 $1 Ra1 49. Bc6 Nc7 50. b6 $2 (50. Rb8 $18 {has better winning chances.}) 50... axb6+ 51. Kxb6 Ne6 52. a5 ({Better is} 52. Rc8 $16) 52... Rb1+ $11 53. Ka7 Kd6 54. Bb7 {Threatening Rc8.} Kc7 {White now steadily converts the win.} (54... Ra1 $11) 55. a6 (55. Rc8+ $18 Kd6 56. Kb8) 55... Nd8 $2 {[#]} (55... Ra1 $2 56. Rc8+ Kd6 57. Rc6+ Ke7 58. Kb8 $18) (55... Kd6 $16 56. Rc8 Nc7 57. Rd8+ Ke7) 56. Rxd8 $1 $18 {[%mdl 512]} Kxd8 {KR-KB} (56... Ra1 57. Rc8+) 57. Kb8 g5 58. a7 {White mates.} Ra1 59. a8=Q Rxa8+ 60. Bxa8 {KB-K3P} Kd7 61. Kb7 f5 62. Kb6 Kd6 63. Kb5 g4 64. Kc4 Ke5 65. Kd3 h4 66. Ke3 f4+ 67. Kd3 Kf5 68. Bb7 Ke5 69. Bc8 g3 70. hxg3 f3 71. gxf3 Kd5 {Weighted Error Value: White=0.34/Black=0.39} 1-0

[Event "Svetozar Gligoric Masters 2022"]
[Site "Belgrade"]
[Date "2022.07.19"]
[Round "4.11"]
[White "Ozer, Omer Faruk"]
[Black "Makarian, Rudik"]
[Result "0-1"]
[ECO "A47"]
[WhiteElo "2317"]
[BlackElo "2533"]
[Annotator "TA"]
[PlyCount "68"]
[EventDate "2022.07.18"]
[EventCountry "SRB"]
[SourceTitle "playchess.com"]
[Source "ChessBase"]
[SourceQuality "1"]
[TimeControl "40/5400+30:900+30"]

{[%evp 9,68,6,20,22,39,37,37,-19,-18,-50,-66,-70,-17,-38,-23,-34,-25,-30,-24,-27,-33,-67,-58,-69,-67,-80,-50,-45,0,0,10,16,6,0,2,2,49,66,102,-133,-118,-376,-425,-422,-425,-420,-413,-605,-595,-682,-682,-678,-668,-658,-637,-679,-670,-29994,-29995,-29995,-29996]} 1. Nf3 Nf6 2. d4 c5 3. e3 b6 4. Bd3 Bb7 5. O-O g6 6. c4 {A47: 1 d4 Nf6 2 Nf3 b6: Torre, London and Colle Systems.} Bg7 7. d5 {now scores much better than the old 7.Nc3.} b5 {[#]} 8. e4 $146 ({White should try} 8. Re1 $14) ({Predecessor:} 8. Nc3 b4 9. Ne2 d6 10. Nd2 O-O 11. f4 e6 12. e4 Nbd7 13. Nf3 exd5 14. exd5 {1-0 (36) Mladenovic,S (2355)-Nestorovic,N (2453) Kragujevac 2018}) 8... bxc4 $11 9. Bxc4 Nxe4 10. Qb3 Qb6 (10... Nd6 $15) 11. Re1 Nd6 12. Bg5 f6 13. Bf4 {aiming for Bxd6.} Nxc4 14. Qxc4 Qb4 (14... Qxb2 15. Nc3 Qb4 16. Qe2 $11) 15. Qe2 {[%csl Ge1][%cal Re2e7]} O-O 16. Bd2 Qb6 ({But not} 16... Qxb2 17. Nc3 Qb6 18. Qxe7 $11) 17. Nc3 Re8 18. h4 e5 (18... Qxb2 $2 19. Rab1 Ba6 20. Rxb2 $18) 19. h5 Na6 (19... Qxb2 $2 20. Rab1 Ba6 21. Qe4 $18) (19... gxh5 $2 20. Nh4 f5 21. Qxh5 $18) 20. hxg6 hxg6 21. Qe4 Kf7 (21... Qxb2 $2 22. Rab1 Qa3 23. Rxb7 $18) 22. Qg4 Rad8 (22... Nc7 $11) 23. Rad1 $1 $14 Rh8 24. Be3 $2 {[#]} (24. Ne4 $1 $16 {is necessary to keep the advantage.}) 24... Rh5 $1 $36 {[%mdl 2048] White is under strong pressure.} (24... Qxb2 $2 25. Ne4 $18) 25. d6 $2 {[%mdl 8192] [#] Now White is beyond hope.} (25. b3 $17) 25... Qb4 $1 $19 {Dancing on a razor blade.} 26. Qxb4 Nxb4 ({Stronger than} 26... cxb4 27. Ne2 $19) 27. Ne2 Nc2 28. Bxc5 (28. Ng3 $142 Nxe1 29. Rxe1) 28... e4 29. Ng3 Rxc5 30. Nxe4 Nxe1 31. Nxc5 Nxf3+ 32. gxf3 Bxf3 {( -> ...Rh8)} 33. Re1 Rh8 {[%csl Gf3][%cal Rh8h1]} 34. Re7+ Kg8 {Weighted Error Value: White=0.63/Black=0.10 (very precise)} 0-1

[Event "Svetozar Gligoric Masters 2022"]
[Site "Belgrade"]
[Date "2022.07.19"]
[Round "4.12"]
[White "Pujari, Rucha"]
[Black "Arjun Kalyan"]
[Result "0-1"]
[ECO "D37"]
[WhiteElo "2244"]
[BlackElo "2499"]
[Annotator "TA"]
[PlyCount "102"]
[EventDate "2022.07.18"]
[EventCountry "SRB"]
[SourceTitle "playchess.com"]
[Source "ChessBase"]
[SourceQuality "1"]
[TimeControl "40/5400+30:900+30"]

{[%evp 10,102,5,-26,0,-8,34,30,41,25,24,23,42,16,41,41,41,31,40,37,54,61,74,66,70,52,60,26,22,22,33,12,12,6,39,0,20,-16,0,0,24,5,13,13,21,16,10,8,50,46,50,50,50,50,50,50,61,61,61,42,43,-88,-93,-195,-206,-200,-204,-204,-206,-198,-47,-28,-65,-158,-180,-341,-344,-570,-506,-871,-889,-807,-750,-1256,-1270,-2926,-2738,-2733,-1804,-29975,-29973,-29971,-29973,-6091,-5401]} 1. d4 Nf6 2. c4 e6 3. Nf3 d5 4. Nc3 Nbd7 5. e3 a6 6. a3 b6 {D37: Queen's Gambit Declined: 5 Bf4.} 7. b4 a5 8. b5 {[#]} Bb7 $146 {White has an edge.} ({Predecessor:} 8... Bd6 9. g3 Bb7 10. Bg2 dxc4 11. O-O O-O 12. Bb2 c5 13. bxc6 Bxc6 14. a4 Qe7 {½-½ (50) Kempinski,R (2553)-Jakubowski,K (2483) Warsaw 2003}) 9. Bb2 Bd6 10. Qc2 O-O 11. Bd3 Qe7 (11... dxc4 {keeps more tension.} 12. Bxc4 e5 13. Ne2 Be4) 12. cxd5 exd5 13. Qb3 Rfe8 14. O-O Nf8 15. a4 Ng6 16. Ba3 Rad8 17. Bxg6 hxg6 18. Ne5 Qe6 19. Bxd6 cxd6 20. Nd3 g5 21. Rac1 g6 22. Rfe1 Kg7 23. f3 Rc8 24. h3 Rc4 25. Nb1 Rxc1 26. Nxc1 Nh5 27. Nd3 f5 28. Nd2 Qf6 29. Nf1 {Threatens to win with g4.} Kh7 30. Rc1 Re7 {[%cal Be8e7,Be7c7,Bc7c4][%mdl 32]} 31. Nf2 Ng7 32. Rc3 Ne6 33. Qd1 Qg7 34. Rd3 Rc7 35. g4 (35. Qb3 $14 {keeps the upper hand.}) 35... f4 $17 36. e4 (36. exf4 $17 {was necessary.} gxf4 37. h4) 36... Rc4 $19 37. exd5 Bxd5 {Hoping for ...Qc7.} 38. Nd2 Rxd4 39. Nde4 Qe5 (39... Bc4 $1 $19 {[%cal Rc4d3]} 40. Rxd4 Qxd4 41. Qxd4 Nxd4 42. Nf6+ Kg7) 40. Rxd4 $15 Nxd4 (40... Qxd4 $2 41. Qxd4 Nxd4 42. Nf6+ Kg7 43. Nxd5 $18) 41. Nxg5+ {[#]} Kg7 $1 $17 {0x0.0013b8d9385edp-1022s more active pieces.} 42. Nfe4 $2 {[#]} (42. h4 {might work better.}) 42... Bb3 $1 $19 43. Qd3 (43. Qd2 {was the only chance.} d5 44. Nf2) 43... d5 44. Nd6 (44. Nc3 $142 Qe3+ 45. Qxe3 fxe3 46. Kf1) 44... Qe3+ 45. Qxe3 fxe3 {[%cal Bf4e3,Be3e2][%mdl 4128] Endgame KBN-KNN} 46. Nc8 Bxa4 47. Nxb6 Bxb5 48. f4 Nc2 {( -> ...e2)} 49. Nxd5 e2 50. Nf3 Bc6 51. Kf2 Bxd5 {Weighted Error Value: White=0.63/Black=0.14 (very precise)} 0-1

[Event "Svetozar Gligoric Masters 2022"]
[Site "Belgrade"]
[Date "2022.07.19"]
[Round "4.14"]
[White "Ristic, Luka"]
[Black "Alexakis, Dimitris"]
[Result "1-0"]
[ECO "B13"]
[WhiteElo "2243"]
[BlackElo "2484"]
[Annotator "TA"]
[PlyCount "135"]
[EventDate "2022.07.18"]
[EventCountry "SRB"]
[SourceTitle "playchess.com"]
[Source "ChessBase"]
[SourceQuality "1"]
[TimeControl "40/5400+30:900+30"]

{[%evp 9,135,8,13,5,3,-4,-8,-12,-14,-29,-23,-65,-45,-77,-78,-58,-65,-66,-60,-61,-60,-56,-18,-8,-14,-25,-17,-104,-104,-261,-68,-99,-96,-219,-104,-100,-97,-91,-95,-104,-97,-101,-90,-94,-25,-27,-16,-28,0,-68,-70,-66,-60,-53,10,0,35,34,45,20,116,112,139,116,189,165,186,181,163,127,148,122,126,121,200,198,194,177,190,191,198,174,209,208,207,204,243,206,200,208,203,152,160,160,165,68,67,36,263,252,263,171,263,263,272,248,247,266,262,250,374,258,237,218,29976,29977,29977,29978,29978,29979,29979,29980,29982,29983,29983,29983,29982,29942]} 1. d4 d5 2. Bf4 c5 3. e3 cxd4 4. exd4 Nc6 5. c3 Bf5 6. Nd2 {B13: Caro-Kann: Exchange Variation and Panov-Botvinnik Attack.} e6 7. Qb3 Qd7 8. Ngf3 {The position is equal.} f6 9. Be2 g5 10. Be3 Nge7 {[#]} 11. Qd1 $146 ({Predecessor:} 11. Nf1 h5 12. h4 g4 13. N3d2 Bg6 14. Bf4 Nf5 15. Ne3 Rh7 16. Nxf5 Bxf5 17. Nf1 {0-1 (31) Sukandar,I (2393)-Kvon,A (2509) Adelaide 2018}) 11... Bg6 12. Nb3 Nf5 13. Bd3 h5 14. h3 Qh7 15. Qe2 {[%cal Oe3g5]} Nd6 16. Bxg6+ Qxg6 17. Nc5 Kf7 18. b4 (18. O-O-O $11) 18... b6 $17 19. Nd7 {[#]} (19. Nd3 $17) 19... Kg8 $2 (19... Bg7 $1 $19 {Strongly threatening ...Rad8.} 20. b5 Na5 21. Bxg5 Nac4) 20. Qa6 Rd8 21. Nc5 (21. Nxf8 $17 Rxf8 22. h4) 21... Nb8 (21... bxc5 22. Qxc6 cxb4 23. cxb4 $17) (21... Nc4 $19 {is more deadly. ...Nb8 is the strong threat.} 22. Qb5 Qe8) 22. Qd3 Qxd3 23. Nxd3 Rc8 24. Bd2 Ne4 25. h4 {[%cal Rh4g5]} g4 (25... Nxc3 26. Rc1 e5 27. dxe5 $16 (27. Rxc3 Rxc3 28. Bxc3 e4 $14) (27. Bxc3 e4 $11)) 26. Ng1 {[%cal Bf3g1,Bg1e2,Be2f4,Bf4d5,Bd5b4][%mdl 32]} Na6 (26... Nxc3 $2 27. Rc1 $18) (26... Nc6 $17) 27. Ne2 $11 Nc7 28. a4 $1 {Against Nb5} Ne8 29. f3 (29. a5 $11) 29... Nxd2 $15 30. Kxd2 Nd6 31. Kc2 Nc4 ({Black should play} 31... gxf3 $15 32. gxf3 Kf7) 32. Nef4 $11 Kf7 33. Rae1 {[%cal Ba1e1,Be1e2,Be2e7][%mdl 32] Against e5} Rc6 34. Re2 {Threatens to win with Rhe1.} Bg7 (34... Bh6 $11 {keeps the balance.}) 35. Rhe1 $16 {[%cal Re2e6]} e5 36. Nxd5 (36. dxe5 $6 fxe5 37. Nxd5 Rd6 $14) 36... Rd8 (36... gxf3 $16 37. gxf3 Rd6) 37. b5 $18 Rcd6 38. N5b4 {Pair of Knights!} exd4 39. Re7+ Kf8 40. Nc6 {Really sharp!} Ne3+ 41. R7xe3 {0x0.0019885b40eedp-1022s more active pieces.} Rxc6 (41... dxe3 $16 {might work better.} 42. Nxd8 gxf3) 42. bxc6 dxe3 43. Rxe3 $16 {[%mdl 4096] Endgame KRB-KRN} Rc8 44. Re6 {And now fxg4 would win.} ({Don't do} 44. fxg4 hxg4 45. Re6 Kf7) 44... gxf3 45. gxf3 {Black must now prevent f4.} Kf7 46. Rd6 Bf8 47. Rd7+ Ke6 48. Rxa7 Rxc6 49. Nf4+ Kf5 50. Nxh5 Bb4 51. Ng3+ Kf4 {[#]} 52. Ne2+ (52. Kb3 $1 $18 Bc5 53. Rg7) 52... Ke3 $14 53. Kb3 (53. Kb2 $5 {[%cal Rc3b4]} Bc5 54. Nd4 Bxd4 55. cxd4 $16) 53... Ba5 $2 (53... Bc5 $1 $14 54. Nd4 Bxd4 55. cxd4 Kxd4) 54. Re7+ $18 Kf2 55. f4 f5 (55... Rc5 {keeps fighting.} 56. Re6 Rh5) 56. Re5 Rh6 57. Nd4 Rxh4 58. Rxf5 Rh3 59. Nb5 Rf3 (59... Kg3 {was necessary.} 60. Kc4 Rh8) 60. Kc4 Kg3 61. Rf8 Rxf4+ $2 (61... Kg4 $18 62. f5 Kg5) 62. Rxf4 {White mates.} Kxf4 {KB-KN} 63. Nd4 Ke4 64. Nb3 b5+ 65. axb5 {[%cal Ba4b5,Bb5b6][%mdl 32]} Bb6 66. Nc5+ Ke3 67. Nd7 Bd8 68. b6 {White used his chance.  Weighted Error Value: White=0.25 (precise) /Black=0.33} 1-0

[Event "Svetozar Gligoric Masters 2022"]
[Site "Belgrade"]
[Date "2022.07.19"]
[Round "4.15"]
[White "Atalik, Suat"]
[Black "Arpita, Mukherjee"]
[Result "1-0"]
[ECO "E62"]
[WhiteElo "2446"]
[BlackElo "2281"]
[Annotator "TA"]
[PlyCount "93"]
[EventDate "2022.07.18"]
[EventCountry "SRB"]
[SourceTitle "playchess.com"]
[Source "ChessBase"]
[SourceQuality "1"]
[TimeControl "40/5400+30:900+30"]

{[%evp 13,93,4,31,16,13,12,39,18,45,45,75,91,68,58,119,128,122,141,108,104,176,175,191,191,178,169,191,182,235,187,251,245,343,291,386,392,468,460,572,566,1161,381,430,411,477,430,448,426,471,460,485,500,468,454,563,558,797,812,1004,1007,997,1012,1012,1002,999,994,980,959,873,824,802,791,954,953,1030,1027,1533,1484,29990,29991,29997,29998]} 1. d4 Nf6 2. c4 g6 3. g3 Bg7 4. Bg2 d6 5. Nc3 O-O 6. Nf3 Nc6 7. h3 e5 8. Be3 {E62: King's Indian: Fianchetto: 6...c6 and Panno Variation (6...Nc6) without ...a6.} (8. d5 $5 {[%cal Rd5c6]} e4 9. dxc6 exf3 10. Bxf3 bxc6 11. Bxc6 $11) 8... exd4 9. Nxd4 Ne5 10. b3 {White is slightly better.} a6 11. Qd2 Rb8 {[#]} 12. Rd1 $146 ({Predecessor:} 12. Bh6 c5 13. Bxg7 Kxg7 14. Nc2 Be6 15. Rd1 Qa5 16. Ne3 b5 17. f4 Ned7 18. f5 gxf5 {0-1 (31) Wassin,S (2289)-Jandric,D (2212) Ohrid 2017}) 12... Bd7 13. Bg5 Qe8 ({Black should play} 13... Re8 $14) 14. O-O $16 b5 15. Nd5 Nxd5 16. cxd5 f6 (16... c5 $16 {is a better defense.}) 17. Be3 $18 Nf7 18. Rc1 Rc8 19. f4 {Inhibits Ng5.} f5 20. Bf2 Nd8 (20... Qe7 $142 21. Rc2 Rfe8) 21. Rfe1 Qf7 (21... Rf7 $142 22. Rc2 Nb7) 22. Rc2 Bxd4 23. Qxd4 Be8 24. Rec1 Qd7 25. Qa7 {[%csl LRa6,LRc7][%cal Rc2c7]} Rf7 26. Qxa6 Rb8 27. Qa5 $2 (27. Rxc7 Kf8 28. Rxd7 Rxd7 29. Bb6) 27... Rb7 28. Qb4 Re7 29. Qd4 b4 30. Bf3 Rf7 31. Rc4 Qb5 32. Be1 {[%cal Bf2e1,Be1c3,Bc3f6][%mdl 32]} Qa6 33. R1c2 Bb5 34. Rxb4 c5 35. dxc6 $1 Nxc6 {[#]} 36. Rxc6 $1 Bxc6 37. Bc3 {[%csl Gc3][%cal Rd4h8]} Qa7 38. Qxa7 Rxa7 39. Bxc6 {Strongly threatening Rb8+. A strong pair of Bishops.} Rfc7 40. Bd5+ Kf8 41. Bf6 {[#] Threatening mate with Rb8+.} Rc8 {Against Rb8} 42. a4 Re8 43. Kf2 Rc7 44. Rc4 Ra7 45. b4 Rxa4 46. Rc7 {[%csl Gc7][%cal Rf6g7]} Rb8 47. Rxh7 {Weighted Error Value: White=0.27 (precise) /Black=0.45} 1-0

[Event "Svetozar Gligoric Masters 2022"]
[Site "Belgrade"]
[Date "2022.07.19"]
[Round "4.16"]
[White "Srija, Seshadri"]
[Black "Samant Aditya S"]
[Result "0-1"]
[ECO "B89"]
[WhiteElo "2208"]
[BlackElo "2431"]
[Annotator "TA"]
[PlyCount "76"]
[EventDate "2022.07.18"]
[EventCountry "SRB"]
[SourceTitle "playchess.com"]
[Source "ChessBase"]
[SourceQuality "1"]
[TimeControl "40/5400+30:900+30"]

{[%evp 15,76,13,14,0,0,-8,9,-3,0,0,0,0,0,0,8,-89,-76,-72,-68,-285,-260,-289,-281,-277,-274,-268,-264,-276,-278,-268,-264,-272,-271,-272,-260,-254,-227,-219,-229,-160,-143,-149,-120,-404,-313,-308,-308,-400,-338,-429,-431,-439,-402,-300,-100,-1338,-958,-1502,-1443,-29979,-29980,-6395,-2099]} 1. e4 c5 2. Nf3 d6 3. d4 cxd4 4. Nxd4 Nf6 5. Nc3 Nc6 6. Bc4 e6 7. Be3 a6 8. Qe2 Bd7 {8...Be7 is becoming the main line.} 9. f4 {B89: Sicilian: Velimirovic Attack.} b5 10. Bd3 Be7 {[#]} 11. Qf3 $146 {[%cal Oe4e5] The position is equal.} ({Predecessor:} 11. O-O Qc7 12. a4 b4 13. Nb1 Nxd4 14. Bxd4 e5 15. fxe5 dxe5 16. Bf2 Ng4 17. Kh1 Nxf2+ 18. Qxf2 {0-1 (47) Daels,M (2186)-Van der Weide,K (2400) Bethune 2002}) 11... Rc8 12. a4 b4 13. Nce2 a5 14. Nb5 O-O 15. g4 (15. O-O $11 {keeps the balance.}) 15... e5 $1 $17 {[%cal Be6e5,Be5d4][%mdl 32] aiming for ...exf4.} 16. f5 d5 $1 17. Rg1 $2 (17. exd5 $2 e4 18. Bxe4 Ne5 $19) (17. O-O $15) 17... dxe4 $19 (17... Nxe4 18. Bxe4 dxe4 19. Qxe4 $17) 18. Bxe4 Nxe4 19. Qxe4 Nd4 20. Bxd4 exd4 21. O-O-O Bg5+ 22. Kb1 Re8 23. Qg2 Bc6 24. Qf1 Be4 25. Nexd4 b3 26. Ka1 bxc2 27. Nxc2 Qe7 ({Of course not} 27... Rxc2 $6 28. Rxd8 Rxd8 29. Nc3 $11) 28. Nca3 Bf6 {[%mdl 1024] Hoping for ...Qb4. Black has strong compensation. Black is more active.} 29. Nd6 $2 {[%mdl 8192]} (29. g5 $17 {was the only chance.} Be5 30. Nc4) 29... Red8 (29... Qe5 30. Qb5 Rb8 31. Qxe5 (31. Nxe8 Rxb5 32. Nxf6+ gxf6 $14) 31... Rxe5 32. g5 $16) 30. Nac4 Rb8 {And now ...Rb4 would win.} 31. Qf4 Bc2 {White must now prevent ...Rb4. This bishop pair is nice.} 32. Rd2 {[#]} Bg5 $1 {[%mdl 64] Skewer} 33. f6 {[#]} gxf6 34. Nf5 {[#]} Qc5 $40 {[%mdl 128] Black is out for blood. Chess con chili.} ({Not} 34... Bxf4 35. Nxe7+ Kf8 36. Rxc2 $16) (34... Qe8 $1 $19 {and Black stays clearly on top.} 35. Rxd8 Rxd8) 35. Rxd8+ $4 {[%mdl 8192]} (35. Qf2 $17 Qxc4 36. Rxc2 Qxa4+ 37. Kb1) 35... Rxd8 36. Qf1 Bd3 37. Qd1 Qxc4 38. h4 Bf4 {Weighted Error Value: White=0.97/Black=0.14 (very precise)} 0-1